bitfinex/quotes_ETHUSD_20250925
["timestamp","ask_amount","ask_price","bid_price","bid_amount"]
[1758771786835,0.001,4061.9,4061.7,0.2326]
[1758771787404,0.001,4061.9,4061.6,0.4525]
[1758771787607,0.001,4061.9,4061.0,0.2326]
[1758771787835,0.458,4061.8,4060.9,4.664]
[1758771788220,0.458,4061.8,4060.9,4.8966]
[1758771788408,0.02561312,4061.9,4061.0,0.2326]
[1758771788815,0.001,4061.9,4061.0,0.6851]
[1758771789215,0.001,4061.9,4061.1,0.70972387]
[1758771789438,0.001,4061.9,4061.2,0.53737239]
[1758771789639,0.001,4061.9,4061.2,1.22247239]
[1758771789942,0.001,4061.9,4061.3,0.2326]
[1758771790126,0.001,4061.9,4061.3,0.6851]
[1758771790330,0.001,4061.9,4061.5,2.46213729]
[1758771790528,0.001,4061.9,4061.6,4.451]
[1758771790843,0.001,4061.9,4061.6,0.6631]
[1758771791011,0.001,4061.9,4061.7,0.6631]
[1758771791449,0.001,4061.9,4061.8,3.12506267]
[1758771791658,0.001,4061.9,4061.8,0.6631]
[1758771795926,0.001,4061.9,4061.8,3.14968229]
[1758771797453,0.001,4061.9,4061.8,3.12506267]
[1758771797623,0.001,4061.9,4061.2,0.53737239]
[1758771797825,0.001,4061.9,4061.3,4.5547]
[1758771799061,0.001,4061.9,4061.3,7.01696448]
[1758771799439,0.001,4061.9,4061.4,3.1253037]
[1758771799762,0.001,4061.9,4061.4,0.6631]
[1758771799960,0.001,4061.9,4061.5,0.2257]
[1758771800128,0.001,4061.9,4061.5,0.6631]
[1758771800461,0.001,4061.9,4061.6,0.2257]
[1758771800661,0.4714,4061.9,4061.2,2.051]
[1758771800858,0.6113,4061.9,4061.3,4.444]
[1758771801057,0.02461312,4061.8,4061.3,4.444]
[1758771801464,0.63491312,4061.8,4061.3,4.444]
[1758771802161,0.49501312,4061.8,4061.3,4.444]
[1758771802365,0.49501312,4061.8,4061.4,4.443]
[1758771803037,0.49501312,4061.8,4061.3,4.443]
[1758771803365,2.48658561,4061.8,4060.8,0.2257]
[1758771803554,0.6103,4061.7,4060.9,6.493]
[1758771803742,0.02461312,4061.6,4060.9,6.493]
[1758771806574,0.02561312,4061.9,4061.0,0.2257]
[1758771807650,0.02561312,4061.9,4061.0,2.68814579]
[1758771807848,0.001,4061.9,4061.5,2.46210426]
[1758771808052,0.001,4061.9,4061.6,4.46362083]
[1758771808276,0.001,4061.9,4061.7,4.439]
[1758771808440,0.001,4061.9,4061.7,0.6631]
[1758771808745,0.001,4061.9,4061.8,5.1021]
[1758771809342,0.001,4061.9,4061.8,8.27947267]
[1758771809536,0.001,4061.9,4061.8,5.81751]
[1758771809743,0.001,4061.9,4061.8,8.27947267]
[1758771809943,0.001,4061.9,4061.8,5.81751]
[1758771810748,0.001,4061.9,4061.8,8.27947267]
[1758771813470,0.001,4061.9,4061.8,10.32747267]
[1758771814589,0.001,4061.9,4061.8,10.44987267]
[1758771815453,0.001,4061.9,4061.8,11.24187267]
[1758771815658,0.001,4061.9,4061.8,14.24187267]
[1758771816865,0.001,4061.9,4061.8,12.18887267]
[1758771817195,0.001,4061.9,4061.8,7.75487267]
[1758771817396,0.001,4061.9,4061.8,14.23887267]
[1758771818501,0.001,4061.9,4061.8,7.75487267]
[1758771818686,0.001,4061.9,4061.8,8.39487267]
[1758771818999,0.001,4061.9,4061.8,10.44587267]
[1758771819215,0.001,4061.9,4061.8,3.96287267]
[1758771819396,0.001,4061.9,4061.8,10.44587267]
[1758771819600,0.001,4061.9,4061.8,3.96287267]
[1758771819898,0.001,4061.9,4061.6,2.46205831]
[1758771820198,0.001,4061.9,4061.7,4.431]
[1758771820377,0.001,4061.9,4061.8,4.431]
[1758771821722,0.1409,4061.9,4061.8,4.431]
[1758771821933,0.1409,4061.9,4061.2,2.46227478]
[1758771822110,0.4483,4061.8,4061.3,2.051]
[1758771822446,0.4483,4061.8,4061.4,4.43]
[1758771822649,0.1409,4061.9,4061.5,4.43]
[1758771822650,0.001,4061.9,4061.5,4.43]
[1758771822953,0.5882,4061.8,4061.6,4.429]
[1758771823242,0.4483,4061.8,4061.6,4.429]
[1758771824711,0.4483,4061.7,4061.1,2.051]
[1758771824917,0.1399,4061.8,4061.2,4.428]
[1758771825264,0.001,4061.9,4061.2,4.428]
[1758771825604,0.001,4061.9,4061.3,0.712]
[1758771825799,0.001,4061.9,4061.4,6.479]
[1758771826219,0.001,4061.9,4061.5,0.2473]
[1758771826607,0.001,4061.9,4061.6,0.2473]
[1758771826919,0.001,4061.9,4061.7,4.427]
[1758771830153,0.001,4061.9,4061.8,0.02461962]
[1758771831278,0.001,4061.9,4061.8,1.18189196]
[1758771831552,0.001,4061.9,4061.8,1.30429196]
[1758771831756,0.001,4061.9,4061.8,10.24125463]
[1758771831949,0.001,4061.9,4061.8,5.72829196]
[1758771832156,0.001,4061.9,4061.8,10.24125463]
[1758771832350,0.001,4061.9,4061.8,7.77929196]
[1758771832561,0.001,4061.9,4061.8,10.24125463]
[1758771832757,0.001,4061.9,4061.8,7.77929196]
[1758771832919,0.001,4061.9,4061.8,6.94489196]
[1758771833121,0.001,4061.9,4061.8,10.24125463]
[1758771834936,0.001,4061.9,4061.8,14.03325463]
[1758771836550,0.001,4061.9,4061.8,11.98025463]
[1758771836759,0.001,4061.9,4061.8,14.03125463]
[1758771837678,0.001,4061.9,4061.8,6.76625463]
[1758771837978,0.001,4061.9,4061.8,13.23825463]
[1758771839083,0.001,4061.9,4061.8,6.30155463]
[1758771839270,0.001,4061.9,4061.8,5.10525463]
[1758771839475,0.001,4061.9,4061.8,9.52425463]
[1758771839775,0.001,4061.9,4061.8,9.77155463]
[1758771839975,0.001,4061.9,4061.8,10.23625463]
[1758771840547,0.001,4061.9,4060.6,0.002]
[1758771840548,0.1409,4061.9,4060.6,0.002]
[1758771840795,0.792,4061.7,4060.6,0.002]
[1758771840947,0.02461312,4061.6,4060.6,0.002]
[1758771841149,2.46311485,4059.9,4059.4,0.002]
[1758771841347,6.25517552,4059.8,4059.4,0.002]
[1758771841690,6.59151489,4059.8,4059.4,0.002]
[1758771841891,0.5792,4059.8,4059.4,0.076]
[1758771842383,3.04237552,4059.8,4059.4,0.076]
[1758771842567,0.5792,4059.8,4059.4,0.076]
[1758771842775,6.04237552,4059.8,4059.4,0.076]
[1758771843550,3.04237552,4059.8,4059.4,0.076]
[1758771843751,0.5792,4059.8,4059.4,0.076]
[1758771845085,6.04237552,4059.8,4059.4,0.076]
[1758771845386,3.5792,4059.8,4059.4,0.076]
[1758771845548,3.5792,4059.8,4059.4,0.002]
[1758771846057,6.06698864,4059.8,4059.4,0.002]
[1758771846252,3.5792,4059.8,4059.4,0.002]
[1758771846483,6.06698864,4059.8,4059.4,0.002]
[1758771846792,6.04237552,4059.8,4059.4,0.002]
[1758771847156,3.04237552,4059.8,4059.4,0.002]
[1758771847382,3.06698864,4059.8,4059.4,0.002]
[1758771847827,3.85898864,4059.8,4059.4,0.002]
[1758771847986,3.9837167,4059.8,4059.4,0.002]
[1758771848154,2.46335755,4059.5,4059.4,0.002]
[1758771848355,28.07794901,4059.5,4059.4,0.002]
[1758771848590,28.07794901,4059.5,4059.1,0.022]
[1758771848591,3.25553961,4059.2,4059.1,0.022]
[1758771848785,6.28015273,4059.2,4059.1,0.022]
[1758771848987,3.255661,4059.0,4058.9,0.002]
[1758771849197,6.255661,4059.0,4058.9,0.002]
[1758771849364,2.46414666,4058.2,4057.3,0.002]
[1758771849567,2.48875978,4058.2,4057.3,0.002]
[1758771849894,6.06795978,4058.2,4057.3,0.002]
[1758771850199,7.33755108,4058.2,4057.3,0.002]
[1758771850561,6.83534666,4058.2,4057.3,0.002]
[1758771851070,11.25234666,4058.2,4057.3,0.002]
[1758771851388,6.25632884,4057.9,4057.3,0.002]
[1758771851603,12.72432884,4057.9,4057.3,0.002]
[1758771851806,13.30272884,4057.9,4057.3,0.002]
[1758771852575,11.25172884,4057.9,4057.3,0.002]
[1758771852779,13.30372884,4057.9,4057.3,0.002]
[1758771853370,13.69019768,4057.9,4057.3,0.002]
[1758771853703,14.10682499,4057.9,4057.3,0.002]
[1758771854480,13.69119768,4057.9,4057.3,0.002]
[1758771854800,13.30472884,4057.9,4057.3,0.002]
[1758771855184,13.30372884,4057.9,4057.3,0.002]
[1758771855390,6.83472884,4057.9,4057.3,0.002]
[1758771855614,13.30472884,4057.9,4057.3,0.002]
[1758771856307,6.83472884,4057.9,4057.3,0.002]
[1758771856612,13.30472884,4057.9,4057.3,0.002]
[1758771856909,11.25172884,4057.9,4057.3,0.002]
[1758771857213,13.30472884,4057.9,4057.3,0.002]
[1758771859287,20.35472884,4057.9,4057.3,0.002]
[1758771859785,18.30072884,4057.9,4057.3,0.002]
[1758771859977,10.842,4057.9,4057.3,0.002]
[1758771860182,17.72232884,4057.9,4057.4,0.2426]
[1758771860644,0.792,4057.1,4056.9,0.002]
[1758771860924,12.75048864,4057.0,4056.9,0.002]
[1758771861082,12.72587552,4057.0,4056.9,0.002]
[1758771861275,13.30427552,4057.0,4056.9,0.002]
[1758771863306,13.69184442,4057.0,4056.9,0.002]
[1758771863814,13.55194442,4057.0,4056.9,0.002]
[1758771864517,13.69184442,4057.0,4056.9,0.002]
[1758771865590,4.1785689,4057.0,4056.9,0.002]
[1758771865816,13.11344442,4057.0,4056.9,0.002]
[1758771866504,6.64344442,4057.0,4056.9,0.002]
[1758771866720,11.05844442,4057.0,4056.9,0.002]
[1758771867749,6.64344442,4057.0,4056.9,0.002]
[1758771867913,2.46487552,4057.0,4056.9,0.002]
[1758771868115,2.48948864,4057.0,4056.9,0.6861]
[1758771868353,5.48948864,4057.0,4056.9,0.2446]
[1758771868643,3.0,4057.0,4056.9,0.6861]
[1758771868848,2.48948864,4057.0,4056.9,0.6861]
[1758771869009,5.48948864,4057.0,4056.9,0.6861]
[1758771869214,5.46487552,4057.0,4056.9,0.6861]
[1758771869755,2.46461277,4057.5,4056.9,0.6861]
[1758771869756,0.792,4057.5,4056.9,0.6861]
[1758771870044,0.02461312,4057.4,4057.0,0.6841]
[1758771870370,0.02461312,4057.4,4056.9,0.002]
[1758771870371,2.46465112,4057.4,4057.1,0.6841]
[1758771870548,2.46469326,4057.3,4057.2,0.6841]
[1758771870746,2.46469326,4057.3,4056.9,0.002]
[1758771870747,0.02461312,4057.4,4057.3,0.6841]
[1758771870945,2.46464213,4057.4,4057.3,0.6841]
[1758771871108,2.48925525,4057.4,4057.3,0.6841]
[1758771871946,0.02461312,4057.6,4057.3,0.6841]
[1758771872147,0.001,4058.1,4057.4,0.6841]
[1758771872318,2.46455537,4057.6,4057.5,0.2426]
[1758771872648,2.46455537,4057.6,4057.5,0.6841]
[1758771872858,2.4644625,4057.7,4057.5,0.6841]
[1758771873045,0.1232,4057.5,4056.9,0.002]
[1758771873248,7.414,4058.0,4057.0,0.2056]
[1758771873451,7.414,4058.0,4057.1,0.02464814]
[1758771873629,2.46445897,4057.7,4057.2,0.6841]
[1758771873828,2.46438671,4057.9,4057.3,0.6841]
[1758771874151,0.1232,4057.1,4057.0,0.2056]
[1758771874654,0.1232,4057.1,4057.0,0.8897]
[1758771876039,0.1232,4057.1,4057.0,0.6841]
[1758771876758,0.02461312,4057.4,4056.9,0.002]
[1758771876759,2.46487552,4057.0,4056.9,0.002]
[1758771876953,2.48948864,4057.0,4056.9,0.002]
[1758771878764,2.46487552,4057.0,4056.9,0.002]
[1758771878938,2.48948864,4057.0,4056.9,0.002]
[1758771880073,6.25687552,4057.0,4056.9,0.002]
[1758771880960,5.46487552,4057.0,4056.9,0.002]
[1758771881542,24.56174568,4057.7,4056.9,0.6588]
[1758771881543,3.0,4057.7,4056.9,0.6588]
[1758771881761,2.46457242,4057.5,4057.0,0.2251]
[1758771882161,2.46457242,4057.5,4057.1,0.6568]
[1758771882374,3.0,4057.7,4057.2,0.2251]
[1758771882375,2.46467038,4057.4,4057.2,0.2251]
[1758771882583,2.46469326,4057.3,4057.2,0.2251]
[1758771883282,2.46477226,4057.2,4056.9,0.002]
[1758771883481,0.02461312,4057.1,4057.0,0.6568]
[1758771883683,0.02461312,4057.6,4057.0,0.6568]
[1758771883876,2.46457178,4057.5,4057.0,0.6568]
[1758771884188,2.46469326,4057.3,4057.1,0.2251]
[1758771884480,2.46475401,4057.2,4057.1,0.2251]
[1758771885041,2.48936713,4057.2,4057.1,0.2251]
[1758771885444,2.48936713,4057.2,4056.9,0.002]
[1758771885445,2.46487552,4057.0,4056.9,0.002]
[1758771885682,2.48948864,4057.0,4056.9,0.2271]
[1758771885882,0.02461312,4057.0,4056.9,0.2271]
[1758771886047,0.001,4057.4,4056.9,0.6588]
[1758771886243,0.001,4057.4,4057.0,0.4317]
[1758771886449,0.001,4057.4,4057.0,0.6568]
[1758771886677,0.001,4057.4,4057.1,0.2251]
[1758771886880,0.001,4057.4,4057.1,0.6568]
[1758771887078,0.001,4057.4,4057.1,0.2251]
[1758771887277,0.001,4057.4,4057.2,0.6568]
[1758771887599,0.001,4057.4,4057.3,0.6568]
[1758771888080,2.46563252,4057.4,4057.3,0.6568]
[1758771889991,0.001,4057.4,4057.3,0.6568]
[1758771894107,2.46563252,4057.4,4056.9,2.056]
[1758771894272,2.46487552,4057.0,4056.9,0.002]
[1758771894679,0.02461312,4057.1,4056.9,0.2271]
[1758771894890,2.46487552,4057.0,4056.9,0.2271]
[1758771895067,2.46487552,4057.0,4056.9,0.002]
[1758771896709,0.001,4057.4,4056.9,0.2271]
[1758771896915,0.001,4057.4,4056.9,0.002]
[1758771897110,2.46487552,4057.0,4056.9,0.002]
[1758771897287,0.001,4057.4,4056.9,0.6588]
[1758771897616,2.46487552,4057.0,4056.9,0.2271]
[1758771898016,2.46487552,4057.0,4056.9,0.002]
[1758771898981,0.02461312,4057.1,4056.9,0.002]
[1758771899184,0.001,4057.4,4056.9,0.6588]
[1758771899387,2.46476205,4057.2,4057.0,0.6568]
[1758771899618,2.46470631,4057.3,4057.1,0.6568]
[1758771900018,2.46470631,4057.3,4057.1,0.2251]
[1758771900587,0.001,4057.4,4057.1,0.2251]
[1758771900817,2.46475047,4057.3,4057.1,0.2251]
[1758771901207,3.001,4057.4,4057.1,0.2251]
[1758771901410,0.001,4057.4,4057.2,0.2465]
[1758771901589,0.001,4057.4,4057.3,0.2465]
[1758771901786,0.001,4057.4,4057.3,0.6849]
[1758771902190,0.001,4057.4,4057.3,6.8379]
[1758771902389,0.001,4057.4,4057.3,7.52169]
[1758771903138,0.001,4057.4,4057.1,4.404]
[1758771903337,0.001,4057.4,4056.9,0.002]
[1758771903495,2.46481419,4057.2,4056.9,0.002]
[1758771903692,2.46470046,4057.3,4056.9,0.002]
[1758771903897,0.02461312,4057.2,4056.9,0.002]
[1758771904145,2.46487552,4057.0,4056.9,0.002]
[1758771904502,3.09788864,4057.0,4056.9,0.002]
[1758771904935,2.62938864,4057.0,4056.9,0.002]
[1758771905101,3.09788864,4057.0,4056.9,0.002]
[1758771905610,2.48948864,4057.0,4056.9,0.002]
[1758771906216,3.09788864,4057.0,4056.9,0.002]
[1758771907814,2.48948864,4057.0,4056.9,0.002]
[1758771909103,0.001,4057.4,4056.9,0.002]
[1758771909299,2.46487552,4057.0,4056.9,0.002]
[1758771909539,0.001,4057.4,4056.9,0.2485]
[1758771909704,0.001,4057.4,4057.0,0.6849]
[1758771909905,2.46564409,4057.4,4057.0,0.6849]
[1758771910212,2.46479578,4057.2,4056.9,0.002]
[1758771910737,2.46481527,4057.1,4056.9,0.2338]
[1758771910948,2.46487552,4057.0,4056.9,0.2338]
[1758771911114,2.46487552,4057.0,4056.9,0.002]
[1758771911506,2.48943827,4057.1,4056.9,0.002]
[1758771911736,2.46487552,4057.0,4056.9,0.6673]
[1758771911943,2.46487552,4057.0,4056.9,0.002]
[1758771912654,2.48943493,4057.1,4056.9,0.002]
[1758771913226,2.46487552,4057.0,4056.9,0.002]
[1758771913619,2.48948864,4057.0,4056.9,0.002]
[1758771913962,0.001,4057.4,4056.9,0.6673]
[1758771914129,0.001,4057.4,4057.0,0.6653]
[1758771914447,2.46481476,4057.1,4057.0,0.6653]
[1758771915049,0.02461312,4057.3,4057.0,0.6653]
[1758771915267,2.46481476,4057.1,4057.0,0.2318]
[1758771915618,0.001,4057.4,4057.0,0.2318]
[1758771915824,2.46479528,4057.2,4057.1,0.2318]
[1758771916238,2.46487552,4057.0,4056.9,0.002]
[1758771916572,0.02461312,4057.1,4056.9,0.002]
[1758771916723,0.001,4057.4,4057.0,7.1183]
[1758771916920,0.001,4057.4,4057.1,1.37979494]
[1758771917121,0.001,4057.4,4057.2,0.02464754]
[1758771917434,0.001,4057.4,4057.2,0.6653]
[1758771918055,0.001,4057.4,4057.3,0.6653]
[1758771918444,0.001,4057.4,4057.3,7.1173]
[1758771918650,0.001,4057.4,4057.3,8.14696532]
[1758771920455,0.001,4057.4,4057.3,10.61165858]
[1758771921070,0.001,4057.4,4057.3,6.09196532]
[1758771921371,0.001,4057.4,4057.3,9.58099326]
[1758771921518,0.001,4057.4,4057.3,7.1163]
[1758771922326,0.001,4057.4,4057.3,9.58099326]
[1758771923323,0.001,4057.4,4057.3,7.1163]
[1758771923527,0.001,4057.4,4057.3,5.0613]
[1758771923721,0.001,4057.4,4057.3,7.63395]
[1758771924362,0.001,4057.4,4057.3,2.054]
[1758771924527,2.91813252,4057.4,4057.3,2.054]
[1758771924731,3.05803252,4057.4,4057.3,2.054]
[1758771925142,2.46481476,4057.1,4057.0,0.002]
[1758771925852,3.05721476,4057.1,4057.0,0.002]
[1758771926762,6.05721476,4057.1,4057.0,0.002]
[1758771927443,6.84921476,4057.1,4057.0,0.002]
[1758771927835,5.91731476,4057.1,4057.0,0.002]
[1758771928161,6.05721476,4057.1,4057.0,0.002]
[1758771929676,5.46481476,4057.1,4057.0,0.002]
[1758771930045,2.46481476,4057.1,4057.0,0.002]
[1758771932177,2.48942788,4057.1,4057.0,0.002]
[1758771932382,0.001,4057.4,4057.0,0.002]
[1758771932582,2.46563468,4057.4,4057.0,0.002]
[1758771932880,2.46475401,4057.2,4057.0,0.002]
[1758771933088,2.46481476,4057.1,4057.0,0.002]
[1758771933446,2.46474358,4057.3,4057.0,0.002]
[1758771933762,2.46469326,4057.3,4057.0,0.002]
[1758771933967,0.001,4057.4,4057.1,0.6653]
[1758771934277,0.001,4057.4,4057.2,0.68994754]
[1758771934577,0.001,4057.4,4057.3,2.46469326]
[1758771934780,0.001,4057.4,4057.3,3.12999326]
[1758771935969,0.001,4057.4,4057.3,3.15464019]
[1758771936676,0.001,4057.4,4057.3,3.27784019]
[1758771936882,0.001,4057.4,4057.3,9.69819326]
[1758771937180,0.001,4057.4,4057.3,11.01074117]
[1758771937482,0.001,4057.4,4057.3,2.10104791]
[1758771937650,0.001,4057.4,4057.3,9.69719326]
[1758771939378,0.001,4057.4,4057.3,0.7885]
[1758771939582,0.001,4057.4,4057.3,5.0543]
[1758771939750,0.001,4057.4,4057.3,7.1083]
[1758771940381,0.001,4057.4,4057.3,9.57299326]
[1758771940592,0.001,4057.4,4057.3,10.90017319]
[1758771946573,0.001,4057.4,4057.3,8.84317319]
[1758771946776,0.001,4057.4,4057.3,10.89617319]
[1758771947518,0.001,4057.4,4057.3,4.02367319]
[1758771947833,0.4487,4057.4,4057.3,6.438]
[1758771948317,0.001,4057.4,4057.3,6.6777]
[1758771948484,0.001,4057.4,4057.3,9.58029326]
[1758771948684,0.001,4057.4,4057.3,7.1156]
[1758771948996,0.001,4057.4,4057.3,10.78501304]
[1758771949719,0.001,4057.4,4057.3,8.32031978]
[1758771950016,0.001,4057.4,4057.3,7.88241978]
[1758771950798,0.001,4057.4,4057.3,11.57701304]
[1758771951009,0.001,4057.4,4057.3,14.57701304]
[1758771953721,0.4477,4060.0,4058.5,6.25596451]
[1758771953924,0.4477,4060.0,4058.5,13.31656096]
[1758771954223,0.02,4059.9,4058.5,13.99416096]
[1758771955428,0.02,4059.9,4059.8,2.46317552]
[1758771955723,0.02,4059.9,4059.8,11.89817552]
[1758771955928,0.02,4059.9,4059.8,13.33431884]
[1758771956129,0.02,4059.9,4059.8,14.80391884]
[1758771957304,0.02,4060.9,4060.8,2.46256895]
[1758771957514,0.02,4060.9,4060.8,11.89556895]
[1758771957714,0.02,4060.9,4060.8,6.433]
[1758771958030,0.02,4060.9,4060.8,11.89556895]
[1758771958231,0.02,4060.9,4060.8,12.55110895]
[1758771958823,0.02,4060.9,4060.8,9.55110895]
[1758771959736,0.02,4060.9,4060.8,0.65554]
[1758771959737,0.6076,4060.9,4060.8,0.65554]
[1758771959940,0.6076,4060.9,4060.2,0.494337]
[1758771959941,0.6076,4060.9,4059.4,0.2397]
[1758771960116,0.1399,4060.8,4059.5,6.431]
[1758771960316,0.5876,4060.8,4060.0,2.46300984]
[1758771960527,0.02,4060.9,4060.1,4.378]
[1758771960838,0.02,4060.9,4059.6,0.66707]
[1758771960839,0.5876,4060.7,4059.6,0.66707]
[1758771961041,3.07495032,4060.6,4059.2,2.4634835]
[1758771961204,0.6093,4060.5,4059.4,2.46336547]
[1758771961404,0.6093,4060.4,4059.5,6.429]
[1758771961604,0.6093,4060.4,4059.6,6.429]
[1758771961834,0.6093,4060.3,4059.6,6.429]
[1758771962036,0.6093,4060.3,4059.7,0.88923405]
[1758771962905,0.1599,4060.9,4059.7,0.88923405]
[1758771963121,0.1599,4060.9,4059.9,2.46311329]
[1758771963122,0.6293,4060.9,4059.9,2.46311329]
[1758771963351,3.09181171,4060.9,4060.0,4.40163054]
[1758771963561,3.09181171,4060.9,4059.7,1.12923405]
[1758771963562,2.46273411,4060.6,4060.1,4.377]
[1758771963851,0.6093,4060.5,4060.2,6.428]
[1758771964135,0.6093,4060.5,4058.9,6.415]
[1758771964136,3.09675934,4060.4,4058.8,0.7026]
[1758771964346,0.02,4060.9,4058.1,2.48419439]
[1758771964347,0.63391312,4060.3,4058.9,2.052]
[1758771964552,2.46346558,4059.4,4059.0,6.428]
[1758771964736,0.6093,4059.3,4059.1,6.428]
[1758771964913,0.6093,4059.8,4059.1,7.0708]
[1758771965107,0.6093,4059.7,4059.2,4.376]
[1758771965346,0.63391312,4059.6,4058.1,0.02]
[1758771965548,0.63391312,4059.6,4058.2,2.052]
[1758771965549,0.02461312,4059.5,4058.2,2.052]
[1758771965712,2.46382987,4058.8,4058.3,4.312]
[1758771965912,0.6093,4058.7,4058.3,4.312]
[1758771966108,0.6093,4059.2,4058.4,0.02464025]
[1758771966313,2.46346586,4059.4,4058.4,0.02464025]
[1758771966556,0.63391312,4059.3,4058.3,0.4332]
[1758771966715,3.09740178,4059.3,4058.1,0.02]
[1758771966927,2.46367259,4059.0,4058.2,6.427]
[1758771967259,0.6093,4058.9,4058.3,6.427]
[1758771967924,0.4694,4059.3,4058.4,0.02464025]
[1758771968130,0.4694,4059.3,4058.3,6.427]
[1758771968131,0.4694,4059.3,4058.5,0.9155762]
[1758771968354,2.93288423,4059.3,4058.5,0.9155762]
[1758771968958,0.4694,4059.3,4058.5,0.9155762]
[1758771969132,2.46358367,4059.2,4058.5,0.9155762]
[1758771969347,2.9328938,4059.3,4058.5,0.9155762]
[1758771969740,0.63391312,4059.2,4058.3,2.052]
[1758771970051,2.46395761,4058.6,4058.4,4.374]
[1758771970365,0.1232,4058.3,4058.2,2.053]
[1758771970541,0.1232,4058.3,4058.2,6.427]
[1758771970863,0.1232,4058.3,4058.2,7.0717]
[1758771972570,0.4348,4058.9,4058.2,9.53582814]
[1758771972766,0.1224,4058.6,4058.3,2.46408402]
[1758771972954,0.4348,4059.7,4058.4,0.74284025]
[1758771973158,0.1224,4059.0,4058.5,0.2447]
[1758771973391,0.1224,4059.0,4058.4,0.02464025]
[1758771973392,0.1224,4059.0,4058.6,5.0912]
[1758771973584,0.1224,4059.0,4058.7,0.2447]
[1758771974380,0.1224,4059.0,4058.8,6.426]
[1758771974959,0.1224,4059.0,4058.8,6.37671292]
[1758771975365,2.46298104,4060.2,4058.9,0.2447]
[1758771975697,0.1224,4059.5,4059.1,2.4636003]
[1758771975898,0.1224,4059.5,4059.2,4.6167]
[1758771976063,0.1224,4059.5,4059.2,2.70822842]
[1758771976259,0.1224,4059.5,4059.3,6.425]
[1758771976697,0.1224,4059.5,4059.0,0.66214129]
[1758771976897,0.1224,4059.5,4059.1,6.425]
[1758771977504,0.1224,4059.5,4059.1,6.6697]
[1758771977680,0.1224,4059.5,4059.2,0.2447]
[1758771978206,0.1224,4059.5,4059.1,6.425]
[1758771978574,0.1224,4059.5,4059.1,6.37571292]
[1758771978774,0.1224,4059.5,4059.1,7.34371604]
[1758771979410,0.1224,4059.5,4058.8,0.1224]
[1758771979613,0.4348,4059.4,4058.9,2.053]
[1758771979788,0.1224,4059.0,4058.9,2.053]
[1758771979989,0.6971,4059.0,4058.2,2.58734338]
[1758771980313,0.6971,4059.0,4058.3,9.41991516]
[1758771980520,0.6971,4059.0,4058.3,6.95583014]
[1758771980821,0.6971,4059.0,4058.3,0.53183014]
[1758771981188,0.6971,4059.0,4058.4,6.423]
[1758771981977,0.02461312,4058.9,4058.2,0.1232]
[1758771982178,0.02461312,4058.9,4058.1,0.022]
[1758771982179,0.5747,4058.8,4058.1,0.022]
[1758771982394,2.46408258,4058.4,4058.2,0.588]
[1758771982912,0.5747,4058.3,4058.2,0.588]
[1758771983424,4.369,4059.8,4058.1,0.022]
[1758771983425,2.46403635,4058.4,4058.1,0.022]
[1758771983608,2.58734666,4058.2,4058.1,1.407]
[1758771983930,0.558,4058.2,4058.1,1.407]
[1758771984681,3.16204666,4058.2,4058.1,4.391]
[1758771985022,0.558,4058.2,4058.1,4.391]
[1758771985202,0.1232,4058.2,4058.1,4.391]
[1758771985401,2.58734666,4058.2,4058.1,4.391]
[1758771985635,3.16204666,4058.2,4058.1,4.391]
[1758771985812,0.6979,4058.2,4058.1,4.391]
[1758771986319,0.1232,4058.2,4058.1,4.391]
[1758771987514,3.02214666,4058.2,4058.1,4.391]
[1758771988023,3.16204666,4058.2,4058.1,4.391]
[1758771988326,0.1232,4058.2,4058.1,4.391]
[1758771988728,0.14781312,4058.2,4058.1,4.391]
[1758771988928,3.02214666,4058.2,4058.1,4.391]
[1758771989939,0.558,4058.2,4058.1,4.391]
[1758771990097,0.1232,4058.2,4058.1,4.391]
[1758771991322,0.1232,4058.2,4058.1,0.022]
[1758771991506,0.1232,4058.2,4058.1,4.389]
[1758771991830,0.1232,4058.3,4058.1,5.30237]
[1758771992127,0.1224,4058.6,4058.2,0.74284146]
[1758771992294,0.1224,4058.6,4058.3,2.46404401]
[1758771992497,0.1224,4058.6,4058.5,2.46396451]
[1758771992718,0.1224,4059.0,4058.8,2.46377878]
[1758771992928,0.1224,4059.0,4058.9,7.16183721]
[1758771993229,0.1224,4059.0,4058.9,7.1372]
[1758771993916,2.46318117,4059.8,4058.9,7.1372]
[1758771994122,0.1224,4059.3,4059.0,0.2447]
[1758771994291,0.1224,4059.3,4059.1,0.2447]
[1758771995127,0.1224,4059.3,4059.2,0.2447]
[1758771995435,0.1224,4059.3,4058.9,6.419]
[1758771995732,0.1224,4059.3,4059.0,4.365]
[1758771995943,0.1224,4059.3,4059.0,6.418]
[1758771996227,0.1224,4059.3,4059.1,0.7182]
[1758771996639,0.1224,4059.3,4059.2,4.364]
[1758771996801,0.1224,4059.3,4059.2,6.417]
[1758771997119,0.11652272,4059.3,4059.2,9.59873961]
[1758771997437,0.001,4059.5,4059.3,2.46347611]
[1758771997634,0.001,4059.5,4059.4,0.98450179]
[1758771997834,0.001,4059.5,4059.4,1.70270179]
[1758771997995,0.001,4059.5,4059.4,0.02463418]
[1758771998317,0.001,4059.5,4059.4,6.417]